[Event "Early-Titled-Tuesday-Blitz-March-05-2024"]
[Site "Chess.com"]
[Date "2024.03.05"]
[Round "1"]
[White "Hananmo"]
[Black "wonderfultime"]
[Result "0-1"]
[WhiteElo "2512"]
[BlackElo "3026"]
[TimeControl "180+1"]
[EndTime "8:07:41 PST"]
[Termination "wonderfultime won by resignation"]

1. Nf3 {[%clk 0:02:59.3]} 1... d5 {[%clk 0:02:51.6]} 2. c4 {[%clk 0:02:58.9]}
2... c6 {[%clk 0:02:48.1]} 3. d4 {[%clk 0:02:56]} 3... Nf6 {[%clk 0:02:46.5]} 4.
Nc3 {[%clk 0:02:56.2]} 4... a6 {[%clk 0:02:46.4]} 5. Bf4 {[%clk 0:02:41.3]} 5...
dxc4 {[%clk 0:02:44.8]} 6. a4 {[%clk 0:02:37]} 6... Bf5 {[%clk 0:02:07.7]} 7. e3
{[%clk 0:02:33.2]} 7... e6 {[%clk 0:02:08.1]} 8. Bxc4 {[%clk 0:02:32.7]} 8...
Be7 {[%clk 0:02:08.5]} 9. O-O {[%clk 0:02:32.4]} 9... a5 {[%clk 0:02:08.4]} 10.
Qb3 {[%clk 0:02:24.4]} 10... Ra7 {[%clk 0:02:02]} 11. Rfe1 {[%clk 0:02:21.1]}
11... Ne4 {[%clk 0:01:29.6]} 12. Ne5 {[%clk 0:02:07.9]} 12... O-O {[%clk
0:01:19.5]} 13. f3 {[%clk 0:01:33.2]} 13... Nd2 {[%clk 0:01:18.3]} 14. Qa2
{[%clk 0:01:26.9]} 14... Nxc4 {[%clk 0:01:12.8]} 15. Qxc4 {[%clk 0:01:27.8]}
15... Nd7 {[%clk 0:01:05.3]} 16. e4 {[%clk 0:01:26]} 16... Nxe5 {[%clk
0:01:04.5]} 17. Bxe5 {[%clk 0:01:26.9]} 17... Bg6 {[%clk 0:01:05.1]} 18. Rad1
{[%clk 0:01:26]} 18... Qb6 {[%clk 0:01:03.6]} 19. Kh1 {[%clk 0:01:14.8]} 19...
Raa8 {[%clk 0:00:54.6]} 20. d5 {[%clk 0:01:05.2]} 20... cxd5 {[%clk 0:00:49.1]}
21. exd5 {[%clk 0:01:06.1]} 21... Rac8 {[%clk 0:00:49.3]} 22. Qa2 {[%clk
0:00:58.2]} 22... Rfd8 {[%clk 0:00:28.9]} 23. Nb5 {[%clk 0:00:45.3]} 23... Bb4
{[%clk 0:00:25]} 24. Rf1 {[%clk 0:00:32.5]} 24... exd5 {[%clk 0:00:25.1]} 25.
Rxd5 {[%clk 0:00:32.1]} 25... Rxd5 {[%clk 0:00:23.4]} 26. Qxd5 {[%clk 0:00:33]}
26... h6 {[%clk 0:00:23.2]} 27. Rd1 {[%clk 0:00:28.3]} 27... Re8 {[%clk
0:00:18.7]} 28. Bd4 {[%clk 0:00:27.1]} 28... Qc6 {[%clk 0:00:18.2]} 29. Qxc6
{[%clk 0:00:18.8]} 29... bxc6 {[%clk 0:00:19.1]} 30. Nc3 {[%clk 0:00:19.4]}
30... Bc2 {[%clk 0:00:19.4]} 31. Rc1 {[%clk 0:00:19.8]} 31... Bb3 {[%clk
0:00:15.9]} 32. h3 {[%clk 0:00:19.7]} 32... f6 {[%clk 0:00:13.3]} 33. Kg1 {[%clk
0:00:15.7]} 33... Rd8 {[%clk 0:00:13.4]} 34. Bb6 {[%clk 0:00:14.1]} 34... Rd2
{[%clk 0:00:13.3]} 35. Ne4 {[%clk 0:00:11.6]} 35... Rxb2 {[%clk 0:00:13.5]} 36.
Rxc6 {[%clk 0:00:12]} 36... Bxa4 {[%clk 0:00:14]} 37. Rc8+ {[%clk 0:00:11.7]}
37... Kh7 {[%clk 0:00:14.3]} 38. Ra8 {[%clk 0:00:12]} 38... Bc6 {[%clk
0:00:13.9]} 39. Ra7 {[%clk 0:00:09.4]} 39... Bxe4 {[%clk 0:00:09.6]} 40. fxe4
{[%clk 0:00:10.3]} 40... Re2 {[%clk 0:00:09]} 41. Bxa5 {[%clk 0:00:09]} 41...
Bc5+ {[%clk 0:00:09.2]} 0-1

[Event "Early-Titled-Tuesday-Blitz-March-05-2024"]
[Site "Chess.com"]
[Date "2024.03.05"]
[Round "1"]
[White "laziestwin"]
[Black "Bernt42"]
[Result "1-0"]
[WhiteElo "2599"]
[BlackElo "2271"]
[TimeControl "180+1"]
[EndTime "8:07:41 PST"]
[Termination "laziestwin won by resignation"]

1. d4 {[%clk 0:03:00.1]} 1... d5 {[%clk 0:03:00]} 2. c4 {[%clk 0:03:00]} 2... c6
{[%clk 0:02:59.8]} 3. Nc3 {[%clk 0:02:58.5]} 3... Nf6 {[%clk 0:03:00.3]} 4. Nf3
{[%clk 0:02:57.6]} 4... e6 {[%clk 0:02:59]} 5. g3 {[%clk 0:02:53.6]} 5... Be7
{[%clk 0:02:58.3]} 6. Bg2 {[%clk 0:02:53.7]} 6... Nbd7 {[%clk 0:02:55.5]} 7. O-O
{[%clk 0:02:53.3]} 7... a6 {[%clk 0:02:54.2]} 8. Re1 {[%clk 0:01:52]} 8... dxc4
{[%clk 0:02:45]} 9. Nd2 {[%clk 0:01:38.7]} 9... Nb6 {[%clk 0:02:36.5]} 10. e3
{[%clk 0:01:38.4]} 10... O-O {[%clk 0:02:34.3]} 11. a4 {[%clk 0:01:37.5]} 11...
Rb8 {[%clk 0:02:16.4]} 12. a5 {[%clk 0:01:37]} 12... Nbd5 {[%clk 0:02:16.7]} 13.
Nxc4 {[%clk 0:01:36.9]} 13... b5 {[%clk 0:02:09.4]} 14. axb6 {[%clk 0:01:31]}
14... Nxb6 {[%clk 0:02:05.8]} 15. Ne5 {[%clk 0:01:24.7]} 15... Bb7 {[%clk
0:01:35.9]} 16. Nxc6 {[%clk 0:01:17.3]} 16... Bxc6 {[%clk 0:01:35.8]} 17. Bxc6
{[%clk 0:01:18.2]} 17... Qc8 {[%clk 0:01:31.7]} 18. Bg2 {[%clk 0:01:17.4]} 18...
Nbd5 {[%clk 0:01:29.3]} 19. Qd3 {[%clk 0:00:55.9]} 19... Bb4 {[%clk 0:01:20.1]}
20. Bd2 {[%clk 0:00:51.9]} 20... a5 {[%clk 0:01:18.1]} 21. e4 {[%clk 0:00:49.3]}
21... Ne7 {[%clk 0:01:07.9]} 22. Bg5 {[%clk 0:00:28.8]} 22... Rd8 {[%clk
0:00:56.1]} 23. Bxf6 {[%clk 0:00:28]} 23... gxf6 {[%clk 0:00:56.1]} 24. d5
{[%clk 0:00:26.2]} 24... Qc5 {[%clk 0:00:20]} 25. Rec1 {[%clk 0:00:18.3]} 25...
Qa7 {[%clk 0:00:19.7]} 26. Qf3 {[%clk 0:00:11.5]} 26... Bxc3 {[%clk 0:00:19.5]}
27. bxc3 {[%clk 0:00:11.5]} 27... exd5 {[%clk 0:00:19.8]} 28. Qxf6 {[%clk
0:00:11.5]} 28... dxe4 {[%clk 0:00:19.4]} 29. Bxe4 {[%clk 0:00:12.4]} 29... Ng6
{[%clk 0:00:19.6]} 30. h4 {[%clk 0:00:08.8]} 30... Re8 {[%clk 0:00:19.4]} 31.
Re1 {[%clk 0:00:06.4]} 31... Rb6 {[%clk 0:00:19.4]} 32. Qd4 {[%clk 0:00:05.3]}
32... Rb7 {[%clk 0:00:19.2]} 33. Bxg6 {[%clk 0:00:05.1]} 33... Rxe1+ {[%clk
0:00:18.9]} 34. Rxe1 {[%clk 0:00:06]} 34... Qxd4 {[%clk 0:00:19.3]} 35. Bxh7+
{[%clk 0:00:06.1]} 35... Kxh7 {[%clk 0:00:19.5]} 36. cxd4 {[%clk 0:00:07]} 36...
Rb2 {[%clk 0:00:19.6]} 37. Ra1 {[%clk 0:00:07.3]} 37... Rb5 {[%clk 0:00:19.5]}
38. Kg2 {[%clk 0:00:06.6]} 38... Kg6 {[%clk 0:00:19.8]} 39. Kf3 {[%clk
0:00:07.3]} 39... Kf5 {[%clk 0:00:18.8]} 40. g4+ {[%clk 0:00:07.4]} 40... Ke6
{[%clk 0:00:18.8]} 41. Ke4 {[%clk 0:00:08.1]} 41... Kd6 {[%clk 0:00:18.2]} 42.
h5 {[%clk 0:00:07.1]} 42... Rg5 {[%clk 0:00:17.8]} 43. f3 {[%clk 0:00:05.2]}
43... Rb5 {[%clk 0:00:17.4]} 44. f4 {[%clk 0:00:04.7]} 44... Kc6 {[%clk
0:00:16.2]} 45. g5 {[%clk 0:00:04.9]} 45... Kb6 {[%clk 0:00:15.9]} 46. h6 {[%clk
0:00:05.5]} 1-0

[Event "Early-Titled-Tuesday-Blitz-March-05-2024"]
[Site "Chess.com"]
[Date "2024.03.05"]
[Round "1"]
[White "viktorgen2021"]
[Black "MITerryble"]
[Result "0-1"]
[WhiteElo "2515"]
[BlackElo "3030"]
[TimeControl "180+1"]
[EndTime "8:07:42 PST"]
[Termination "MITerryble won on time"]

1. d4 {[%clk 0:02:55.2]} 1... d5 {[%clk 0:02:57.6]} 2. c4 {[%clk 0:02:54.8]}
2... dxc4 {[%clk 0:02:57.6]} 3. Nf3 {[%clk 0:02:54.6]} 3... Nf6 {[%clk
0:02:57.7]} 4. e3 {[%clk 0:02:54.3]} 4... e6 {[%clk 0:02:58.4]} 5. Bxc4 {[%clk
0:02:51.7]} 5... a6 {[%clk 0:02:59]} 6. O-O {[%clk 0:02:41.5]} 6... c5 {[%clk
0:02:58.9]} 7. Qe2 {[%clk 0:02:41.1]} 7... b5 {[%clk 0:02:57.6]} 8. Bb3 {[%clk
0:02:38]} 8... Bb7 {[%clk 0:02:57.9]} 9. dxc5 {[%clk 0:02:29.6]} 9... Nbd7
{[%clk 0:02:56]} 10. Rd1 {[%clk 0:02:26.2]} 10... Bxc5 {[%clk 0:02:55.4]} 11.
Nc3 {[%clk 0:02:22.9]} 11... O-O {[%clk 0:02:52.4]} 12. a3 {[%clk 0:02:05.6]}
12... Qc7 {[%clk 0:02:48.8]} 13. e4 {[%clk 0:01:59.9]} 13... Ng4 {[%clk
0:02:48.5]} 14. Rf1 {[%clk 0:01:52.6]} 14... Rac8 {[%clk 0:02:37.4]} 15. h3
{[%clk 0:01:51.6]} 15... Nge5 {[%clk 0:02:36.5]} 16. Be3 {[%clk 0:01:45.8]}
16... Nxf3+ {[%clk 0:02:35]} 17. Qxf3 {[%clk 0:01:46.7]} 17... Ne5 {[%clk
0:02:35.5]} 18. Qe2 {[%clk 0:01:47]} 18... Ng6 {[%clk 0:02:09.6]} 19. Bxc5
{[%clk 0:01:38.8]} 19... Qxc5 {[%clk 0:02:10.5]} 20. Rad1 {[%clk 0:01:31.9]}
20... Bc6 {[%clk 0:02:02.2]} 21. Rd2 {[%clk 0:01:19.4]} 21... b4 {[%clk
0:01:52.2]} 22. axb4 {[%clk 0:01:14]} 22... Qxb4 {[%clk 0:01:53.1]} 23. Ba2
{[%clk 0:01:10]} 23... a5 {[%clk 0:01:45]} 24. Rfd1 {[%clk 0:01:06.5]} 24... a4
{[%clk 0:01:45.3]} 25. Bb1 {[%clk 0:01:05.2]} 25... a3 {[%clk 0:01:44.7]} 26.
Na2 {[%clk 0:01:03.9]} 26... Qa5 {[%clk 0:01:43.4]} 27. bxa3 {[%clk 0:01:02.3]}
27... Qxa3 {[%clk 0:01:43.9]} 28. Rd3 {[%clk 0:00:58.6]} 28... Qa8 {[%clk
0:01:35.4]} 29. Rc3 {[%clk 0:00:56.1]} 29... Rb8 {[%clk 0:01:28.9]} 30. Rdc1
{[%clk 0:00:52.7]} 30... Bb7 {[%clk 0:01:19.5]} 31. Nb4 {[%clk 0:00:45.4]} 31...
Qa5 {[%clk 0:01:19.2]} 32. Nc6 {[%clk 0:00:40.6]} 32... Bxc6 {[%clk 0:01:19.4]}
33. Rxc6 {[%clk 0:00:41.5]} 33... Qg5 {[%clk 0:01:20]} 34. Qg4 {[%clk 0:00:37]}
34... Qxg4 {[%clk 0:01:17.7]} 35. hxg4 {[%clk 0:00:37.9]} 35... Ne5 {[%clk
0:01:18.4]} 36. R6c5 {[%clk 0:00:29.1]} 36... Nxg4 {[%clk 0:01:18.9]} 37. f3
{[%clk 0:00:29.7]} 37... Nf6 {[%clk 0:01:19.1]} 38. Kf2 {[%clk 0:00:26.1]} 38...
h6 {[%clk 0:01:19.4]} 39. Ke3 {[%clk 0:00:25.8]} 39... Rfd8 {[%clk 0:01:18.7]}
40. g4 {[%clk 0:00:25.9]} 40... g5 {[%clk 0:01:18.6]} 41. Rc7 {[%clk 0:00:21]}
41... Nd7 {[%clk 0:01:09.5]} 42. Ba2 {[%clk 0:00:16.3]} 42... Ne5 {[%clk
0:01:09.2]} 43. R1c3 {[%clk 0:00:15.6]} 43... Rb2 {[%clk 0:01:06.7]} 44. Bb3
{[%clk 0:00:14.3]} 44... Ng6 {[%clk 0:00:59.9]} 45. Bc2 {[%clk 0:00:12.3]} 45...
Nf4 {[%clk 0:00:58.2]} 46. Ra7 {[%clk 0:00:11.6]} 46... Rdb8 {[%clk 0:00:47.9]}
47. Rcc7 {[%clk 0:00:11.3]} 47... Rf8 {[%clk 0:00:42.9]} 48. Kd4 {[%clk
0:00:11.7]} 48... Kg7 {[%clk 0:00:40]} 49. Ke5 {[%clk 0:00:06.2]} 49... Ng6+
{[%clk 0:00:37.5]} 50. Kd4 {[%clk 0:00:05.6]} 50... Kf6 {[%clk 0:00:37.6]} 51.
Ke3 {[%clk 0:00:02.8]} 51... Ne5 {[%clk 0:00:37.2]} 52. Bd1 {[%clk 0:00:02.2]}
52... Rd8 {[%clk 0:00:37]} 53. Bc2 {[%clk 0:00:02.4]} 53... Rb4 {[%clk
0:00:37.2]} 54. Rc3 {[%clk 0:00:02.1]} 54... Rbd4 {[%clk 0:00:37.2]} 55. Bb3
{[%clk 0:00:01.4]} 55... Rd3+ {[%clk 0:00:37]} 56. Rxd3 {[%clk 0:00:01.9]} 56...
Rxd3+ {[%clk 0:00:36.7]} 0-1

[Event "Early-Titled-Tuesday-Blitz-March-05-2024"]
[Site "Chess.com"]
[Date "2024.03.05"]
[Round "1"]
[White "KoningKobe"]
[Black "Evgeny81"]
[Result "0-1"]
[WhiteElo "2434"]
[BlackElo "2763"]
[TimeControl "180+1"]
[EndTime "8:07:43 PST"]
[Termination "Evgeny81 won by resignation"]

1. e4 {[%clk 0:02:59]} 1... c5 {[%clk 0:02:54.3]} 2. Nf3 {[%clk 0:02:57.9]} 2...
Nc6 {[%clk 0:02:53.4]} 3. d4 {[%clk 0:02:55.9]} 3... cxd4 {[%clk 0:02:52.3]} 4.
Nxd4 {[%clk 0:02:56.8]} 4... Qb6 {[%clk 0:02:51.9]} 5. Nb3 {[%clk 0:02:52.1]}
5... Nf6 {[%clk 0:02:48.5]} 6. Nc3 {[%clk 0:02:45.5]} 6... d6 {[%clk 0:02:44]}
7. Be2 {[%clk 0:02:41]} 7... g6 {[%clk 0:02:42.8]} 8. O-O {[%clk 0:02:40.8]}
8... Bg7 {[%clk 0:02:43.1]} 9. Be3 {[%clk 0:02:40.7]} 9... Qc7 {[%clk 0:02:43]}
10. f4 {[%clk 0:02:25.6]} 10... O-O {[%clk 0:02:41.8]} 11. Bf3 {[%clk
0:02:25.2]} 11... a6 {[%clk 0:02:37.3]} 12. a4 {[%clk 0:02:21.9]} 12... Rb8
{[%clk 0:02:33.5]} 13. a5 {[%clk 0:02:18.7]} 13... Be6 {[%clk 0:02:32.5]} 14.
Nd5 {[%clk 0:02:04.5]} 14... Qc8 {[%clk 0:02:17.7]} 15. Ra4 {[%clk 0:01:54.7]}
15... Re8 {[%clk 0:02:16.5]} 16. h3 {[%clk 0:01:33.5]} 16... Qd8 {[%clk
0:02:00]} 17. Qd3 {[%clk 0:01:25.4]} 17... Rc8 {[%clk 0:01:59.4]} 18. c4 {[%clk
0:01:23.2]} 18... Bxd5 {[%clk 0:01:40.6]} 19. cxd5 {[%clk 0:01:21.3]} 19... Nb8
{[%clk 0:01:41.2]} 20. Bb6 {[%clk 0:01:12.3]} 20... Qd7 {[%clk 0:01:41.5]} 21.
Rb4 {[%clk 0:01:06.3]} 21... e6 {[%clk 0:01:37]} 22. dxe6 {[%clk 0:01:04]} 22...
Rxe6 {[%clk 0:01:27.1]} 23. Rd1 {[%clk 0:00:57.6]} 23... Nc6 {[%clk 0:01:23.2]}
24. Rc4 {[%clk 0:00:56.1]} 24... Qe8 {[%clk 0:01:18.2]} 25. g4 {[%clk
0:00:44.3]} 25... Nd7 {[%clk 0:01:07.7]} 26. g5 {[%clk 0:00:29.2]} 26... Nxb6
{[%clk 0:00:59.4]} 27. axb6 {[%clk 0:00:30.1]} 27... Qd8 {[%clk 0:00:58.6]} 28.
Bg4 {[%clk 0:00:30.2]} 28... Qxb6+ {[%clk 0:00:58.3]} 29. Kg2 {[%clk 0:00:25]}
29... Rce8 {[%clk 0:00:53]} 30. Bxe6 {[%clk 0:00:24.9]} 30... Rxe6 {[%clk
0:00:53.9]} 31. Rd2 {[%clk 0:00:14.8]} 31... h6 {[%clk 0:00:46.3]} 32. h4 {[%clk
0:00:14.7]} 32... hxg5 {[%clk 0:00:44.9]} 33. hxg5 {[%clk 0:00:15.6]} 33... a5
{[%clk 0:00:38.5]} 34. Kf3 {[%clk 0:00:12.3]} 34... Qb5 {[%clk 0:00:21.2]} 35.
Rd4 {[%clk 0:00:09.3]} 35... Nxd4+ {[%clk 0:00:18.9]} 36. Nxd4 {[%clk
0:00:10.2]} 36... Qxd3+ {[%clk 0:00:13.6]} 37. Rxd3 {[%clk 0:00:11.1]} 37... Re8
{[%clk 0:00:07.8]} 38. Nb5 {[%clk 0:00:11.1]} 38... Bxb2 {[%clk 0:00:07.7]} 39.
Nxd6 {[%clk 0:00:10.6]} 39... Rd8 {[%clk 0:00:07.8]} 40. Ke2 {[%clk 0:00:08.6]}
40... a4 {[%clk 0:00:07.8]} 41. Nxb7 {[%clk 0:00:07.8]} 41... Rb8 {[%clk
0:00:05.3]} 42. Nc5 {[%clk 0:00:05.3]} 42... a3 {[%clk 0:00:05.7]} 43. Rd7
{[%clk 0:00:02.6]} 43... a2 {[%clk 0:00:05]} 0-1

[Event "Early-Titled-Tuesday-Blitz-March-05-2024"]
[Site "Chess.com"]
[Date "2024.03.05"]
[Round "1"]
[White "TheKingDoctor"]
[Black "averageFM"]
[Result "1/2-1/2"]
[WhiteElo "2357"]
[BlackElo "2634"]
[TimeControl "180+1"]
[EndTime "8:07:43 PST"]
[Termination "Game drawn by repetition"]

1. e4 {[%clk 0:03:00.9]} 1... c5 {[%clk 0:02:57.5]} 2. c3 {[%clk 0:03:00.3]}
2... d5 {[%clk 0:02:49.3]} 3. exd5 {[%clk 0:02:59.6]} 3... Nf6 {[%clk
0:02:45.7]} 4. d4 {[%clk 0:03:00]} 4... cxd4 {[%clk 0:02:42]} 5. cxd4 {[%clk
0:02:59.4]} 5... Nxd5 {[%clk 0:02:41.6]} 6. Nf3 {[%clk 0:02:59.1]} 6... g6
{[%clk 0:02:40.8]} 7. Bc4 {[%clk 0:02:57.4]} 7... Bg7 {[%clk 0:02:39.4]} 8. Nc3
{[%clk 0:02:54]} 8... Nxc3 {[%clk 0:02:38.5]} 9. bxc3 {[%clk 0:02:51.7]} 9...
O-O {[%clk 0:02:38.4]} 10. O-O {[%clk 0:02:51]} 10... Bg4 {[%clk 0:02:32.1]} 11.
h3 {[%clk 0:02:45.9]} 11... Qc7 {[%clk 0:02:29.2]} 12. Be2 {[%clk 0:02:31.4]}
12... Bxf3 {[%clk 0:02:22.7]} 13. Bxf3 {[%clk 0:02:31.4]} 13... Qxc3 {[%clk
0:02:18.8]} 14. Bd2 {[%clk 0:02:19.3]} 14... Qxd4 {[%clk 0:02:04.5]} 15. Rb1
{[%clk 0:02:14]} 15... Nc6 {[%clk 0:01:56.4]} 16. Rxb7 {[%clk 0:02:13.3]} 16...
Ne5 {[%clk 0:01:56.2]} 17. Be3 {[%clk 0:01:58.4]} 17... Qxd1 {[%clk 0:01:47.7]}
18. Bxd1 {[%clk 0:01:57.7]} 18... a5 {[%clk 0:01:45.8]} 19. Rxe7 {[%clk
0:01:56.8]} 19... Rfe8 {[%clk 0:01:38.3]} 20. Rxe8+ {[%clk 0:01:50.7]} 20...
Rxe8 {[%clk 0:01:39.2]} 21. Bb3 {[%clk 0:01:47.5]} 21... h5 {[%clk 0:01:33.3]}
22. Rc1 {[%clk 0:01:44.2]} 22... Ra8 {[%clk 0:01:29.5]} 23. Ba4 {[%clk
0:01:27.6]} 23... Rb8 {[%clk 0:01:16.4]} 24. Rc5 {[%clk 0:01:20.8]} 24... Rb1+
{[%clk 0:00:58.6]} 25. Kh2 {[%clk 0:01:20.2]} 25... Nd3 {[%clk 0:00:58.4]} 26.
Rxa5 {[%clk 0:01:16.9]} 26... Rb2 {[%clk 0:00:53.6]} 27. Ra8+ {[%clk 0:01:15.5]}
27... Kh7 {[%clk 0:00:53.2]} 28. Bb3 {[%clk 0:01:10.1]} 28... Be5+ {[%clk
0:00:51.7]} 29. g3 {[%clk 0:00:54]} 29... Nxf2 {[%clk 0:00:49.2]} 30. Bxf2
{[%clk 0:00:52.1]} 30... Rxf2+ {[%clk 0:00:50.1]} 31. Kg1 {[%clk 0:00:51.2]}
31... Bxg3 {[%clk 0:00:50.1]} 32. Ra7 {[%clk 0:00:41.9]} 32... Kg7 {[%clk
0:00:49.7]} 33. Rd7 {[%clk 0:00:28.7]} 33... Rf5 {[%clk 0:00:39.5]} 34. a4
{[%clk 0:00:26.6]} 34... Kf8 {[%clk 0:00:35.5]} 35. Bc4 {[%clk 0:00:23.1]} 35...
Ke8 {[%clk 0:00:34.2]} 36. Rb7 {[%clk 0:00:22.7]} 36... g5 {[%clk 0:00:32.8]}
37. Bb5+ {[%clk 0:00:17.8]} 37... Kf8 {[%clk 0:00:32.9]} 38. Be2 {[%clk
0:00:11]} 38... h4 {[%clk 0:00:27.8]} 39. Rb5 {[%clk 0:00:10.9]} 39... Rxb5
{[%clk 0:00:26.6]} 40. Bxb5 {[%clk 0:00:08.1]} 40... Kg7 {[%clk 0:00:22]} 41. a5
{[%clk 0:00:08.2]} 41... f5 {[%clk 0:00:19.8]} 42. a6 {[%clk 0:00:08.5]} 42...
Bb8 {[%clk 0:00:19.6]} 43. Kg2 {[%clk 0:00:07.8]} 43... Kf6 {[%clk 0:00:19.5]}
44. Kf3 {[%clk 0:00:08.4]} 44... Ba7 {[%clk 0:00:19.3]} 45. Bd7 {[%clk
0:00:08.7]} 45... Kg6 {[%clk 0:00:19.2]} 46. Bc8 {[%clk 0:00:09.2]} 46... Kf6
{[%clk 0:00:19.4]} 47. Bd7 {[%clk 0:00:09.8]} 47... Ke5 {[%clk 0:00:19.3]} 48.
Bc8 {[%clk 0:00:10]} 48... Bb6 {[%clk 0:00:19.2]} 49. Bd7 {[%clk 0:00:09.9]}
49... Kf6 {[%clk 0:00:18.2]} 50. Bc8 {[%clk 0:00:09.3]} 50... Ke5 {[%clk
0:00:18.2]} 51. Bd7 {[%clk 0:00:09]} 51... Kf6 {[%clk 0:00:18.8]} 52. Bc8 {[%clk
0:00:09]} 52... Ke5 {[%clk 0:00:19.1]} 1/2-1/2

[Event "Early-Titled-Tuesday-Blitz-March-05-2024"]
[Site "Chess.com"]
[Date "2024.03.05"]
[Round "1"]
[White "DrCeltic"]
[Black "Chopper1905"]
[Result "0-1"]
[WhiteElo "2505"]
[BlackElo "2954"]
[TimeControl "180+1"]
[EndTime "8:07:44 PST"]
[Termination "Chopper1905 won on time"]

1. e4 {[%clk 0:02:58.4]} 1... c5 {[%clk 0:02:59.4]} 2. Nf3 {[%clk 0:02:58]} 2...
Nc6 {[%clk 0:02:58.9]} 3. d4 {[%clk 0:02:58.5]} 3... cxd4 {[%clk 0:02:58.6]} 4.
Nxd4 {[%clk 0:02:59.4]} 4... e6 {[%clk 0:02:59]} 5. Nc3 {[%clk 0:02:59.7]} 5...
Qc7 {[%clk 0:02:58.9]} 6. Be3 {[%clk 0:02:59.5]} 6... a6 {[%clk 0:02:58.9]} 7.
Qf3 {[%clk 0:02:59.6]} 7... Bd6 {[%clk 0:02:55.6]} 8. O-O-O {[%clk 0:02:57.7]}
8... Be5 {[%clk 0:02:55.7]} 9. g3 {[%clk 0:02:44.3]} 9... Nge7 {[%clk 0:02:37]}
10. Bf4 {[%clk 0:02:33.8]} 10... b5 {[%clk 0:01:45.8]} 11. a3 {[%clk 0:02:27.1]}
11... Bb7 {[%clk 0:01:30.4]} 12. Bxe5 {[%clk 0:02:14.9]} 12... Nxe5 {[%clk
0:01:27.6]} 13. Qe3 {[%clk 0:02:10.3]} 13... Rc8 {[%clk 0:01:23.8]} 14. f4
{[%clk 0:02:09.8]} 14... Nc4 {[%clk 0:01:22.9]} 15. Bxc4 {[%clk 0:02:09.1]}
15... Qxc4 {[%clk 0:01:23.8]} 16. Rhe1 {[%clk 0:02:03.7]} 16... b4 {[%clk
0:01:06.7]} 17. axb4 {[%clk 0:02:02.1]} 17... Qxb4 {[%clk 0:01:07.6]} 18. Nb3
{[%clk 0:01:58.4]} 18... Bc6 {[%clk 0:00:50.8]} 19. Qd4 {[%clk 0:01:57.1]} 19...
Qxd4 {[%clk 0:00:44.5]} 20. Nxd4 {[%clk 0:01:56.8]} 20... Ba8 {[%clk 0:00:38.1]}
21. Na4 {[%clk 0:01:48.3]} 21... Bb7 {[%clk 0:00:25.1]} 22. Nb3 {[%clk
0:01:39.3]} 22... f5 {[%clk 0:00:21.1]} 23. Nbc5 {[%clk 0:01:25.1]} 23... Bc6
{[%clk 0:00:21.2]} 24. Nb6 {[%clk 0:01:13.1]} 24... Rc7 {[%clk 0:00:20.6]} 25.
Nc4 {[%clk 0:01:12.5]} 25... O-O {[%clk 0:00:18.2]} 26. exf5 {[%clk 0:00:54.6]}
26... Nxf5 {[%clk 0:00:16.4]} 27. Nxa6 {[%clk 0:00:41]} 27... Ra7 {[%clk
0:00:16.5]} 28. Nb4 {[%clk 0:00:40.8]} 28... Rc8 {[%clk 0:00:08.1]} 29. Nxc6
{[%clk 0:00:36.8]} 29... Rxc6 {[%clk 0:00:09]} 30. b3 {[%clk 0:00:30.4]} 30...
d5 {[%clk 0:00:07.4]} 31. Ne5 {[%clk 0:00:22.2]} 31... Rca6 {[%clk 0:00:07.6]}
32. Nd3 {[%clk 0:00:09]} 32... Nd4 {[%clk 0:00:07.9]} 33. Kd2 {[%clk 0:00:06.7]}
33... Nf3+ {[%clk 0:00:07.6]} 34. Ke3 {[%clk 0:00:06.2]} 34... Nxe1 {[%clk
0:00:08.5]} 35. Rxe1 {[%clk 0:00:07.1]} 35... Ra1 {[%clk 0:00:08.7]} 36. Re2
{[%clk 0:00:07.2]} 36... Kf7 {[%clk 0:00:07.5]} 37. Ne5+ {[%clk 0:00:06.5]}
37... Kf6 {[%clk 0:00:08]} 38. Nc6 {[%clk 0:00:06.4]} 38... Rc7 {[%clk
0:00:07.4]} 39. Nd4 {[%clk 0:00:06.8]} 39... Rd1 {[%clk 0:00:06.3]} 40. h4
{[%clk 0:00:05.3]} 40... Rc3+ {[%clk 0:00:05.9]} 41. Kf2 {[%clk 0:00:03.2]}
41... Rxd4 {[%clk 0:00:06.4]} 0-1